Workbook

Sheet Muni (hidden)
A1: ENTITY NAME | B1: CODE | C1: COUNTY | D1: 2022 | E1: 2023 | F1: 2024 | G1: 3-YEAR AVERAGE | H1: SCHOOL | I1: UTILITY
A2: Aberdeen Township | B2: 1330 | C2: Monmouth | D2: 2850322221 | E2: 3125890785 | F2: 3454220882 | G2: =AVERAGE(D2:F2) -> 3143477963
A3: Absecon City | B3: 0101 | C3: Atlantic | D3: 857513986 | E3: 948766396 | F3: 1059538473 | G3: =AVERAGE(D3:F3) -> 955272951.7 | K3: 0 | M3: Black Horse Pike Regional School District
A4: Alexandria Township | B4: 1001 | C4: Hunterdon | D4: 886478833 | E4: 963637307 | F4: 1023378027 | G4: 957831389 | H4: Type I | I4: Arena | K4: 0.025 | M4: Bordentown Regional School District
A5: Allamuchy Township | B5: 2101 | C5: Warren | D5: 844022228 | E5: 908686619 | F5: 1004087945 | G5: 918932264 | H5: Type II | I5: Affordable Housing | K5: 0.03 | M5: Bridgewater-Raritan Regional School District
A6: Allendale Borough | B6: 0201 | C6: Bergen | D6: 2075748594 | E6: 2210697687 | F6: 2448582994 | G6: 2245009758 | I6: Airport | K6: 0.035 | M6: Buena Regional School District
A7: Allenhurst Borough | B7: 1301 | C7: Monmouth | D7: 976186662 | E7: 1461222836 | F7: 1462314264 | G7: 1299907921 | I7: Beach | K7: 0.04 | M7: Caldwell-West Caldwell Consolidated School District
A8: Allentown Borough | B8: 1302 | C8: Monmouth | D8: 199377689 | E8: 247591026 | F8: 290113947 | G8: 245694220.7 | I8: Electric | M8: Carlstadt-East Rutherford Regional High School
A9: Alloway Township | B9: 1701 | C9: Salem | D9: 331411333 | E9: 389360960 | F9: 406222772 | G9: 375665021.7 | I9: Golf Course | M9: Central Regional School District
A10: Alpha Borough | B10: 2102 | C10: Warren | D10: 242982939 | E10: 275308421 | F10: 315051334 | G10: 277780898 | I10: Harbor | M10: Chatham School District
A11: Alpine Borough | B11: 0202 | C11: Bergen | D11: 1880436604 | E11: 2083185419 | F11: 2091566133 | G11: 2018396052 | I11: Ice Rink | M11: Chester Township Consolidated School District
A12: Andover Borough | B12: 1901 | C12: Sussex | D12: 83005193 | E12: 83403009 | F12: 94112207 | G12: 86840136.33 | I12: Marina | M12: Clearview Regional School District
A13: Andover Township | B13: 1902 | C13: Sussex | D13: 869957194 | E13: 918694059 | F13: 1022235610 | G13: 936962287.7 | I13: Parking | M13: Clinton-Glen Gardner School District
A14: Asbury Park City | B14: 1303 | C14: Monmouth | D14: 2483123847 | E14: 2800143553 | F14: 3212152473 | G14: 2831806624 | I14: Recreation | M14: Cumberland Regional High School
A15: Atlantic City | B15: 0102 | C15: Atlantic | D15: 3186835403 | E15: 3448065018 | F15: 3702839432 | G15: 3445913284 | I15: Sewer | M15: Delaware Valley Regional High School
A16: Atlantic County | B16: 0100 | C16: Atlantic | D16: 39369894998 | E16: 45466690306 | F16: 50966763923 | G16: 4.526778308e+10 | I16: Solid Waste | M16: Delsea Regional School District
A17: Atlantic Highlands Borough | B17: 1304 | C17: Monmouth | D17: 1083114471 | E17: 1178354088 | F17: 1273730593 | G17: 1178399717 | I17: Stormwater | M17: East Windsor Regional School District
A18: Audubon Borough | B18: 0401 | C18: Camden | D18: 871758655 | E18: 978049415 | F18: 1055827842 | G18: 968545304 | I18: Swimming Pool | M18: Eastern Camden County Regional High School
A19: Audubon Park Borough | B19: 0402 | C19: Camden | D19: 20722795 | E19: 20722795 | F19: 20722795 | G19: 20722795 | I19: Water | M19: Flemington-Raritan Regional School District
A20: Avalon Borough | B20: 0501 | C20: Cape May | D20: 14004552620 | E20: 15944352184 | F20: 17323253528 | G20: 1.575738611e+10 | I20: Water & Sewer | M20: Freehold Regional High School District
A21: Avon-by-the-Sea Borough | B21: 1305 | C21: Monmouth | D21: 1457074761 | E21: 1538744186 | F21: 1799980029 | G21: 1598599659 | I21: Other | M21: Gateway Regional School District
A22: Barnegat Light Borough | B22: 1501 | C22: Ocean | D22: 1330053342 | E22: 1717464338 | F22: 1979872907 | G22: 1675796862 | M22: Great Meadows Regional School District
A23: Barnegat Township | B23: 1533 | C23: Ocean | D23: 3476713249 | E23: 4055988867 | F23: 4514819713 | G23: 4015840610 | M23: Greater Egg Harbor Regional High School
A24: Barrington Borough | B24: 0403 | C24: Camden | D24: 645158362 | E24: 739497459 | F24: 816895837 | G24: 733850552.7 | M24: Hanover Park Regional High School District
A25: Bass River Township | B25: 0301 | C25: Burlington | D25: 201767045 | E25: 225787922 | F25: 246997741 | G25: 224850902.7 | M25: Henry Hudson Regional High School
A26: Bay Head Borough | B26: 1502 | C26: Ocean | D26: 2183708948 | E26: 2457873223 | F26: 2859005640 | G26: 2500195937 | M26: High Point Regional High School
A27: Bayonne City | B27: 0901 | C27: Hudson | D27: 9054404667 | E27: 10189024075 | F27: 10833452449 | G27: 1.002562706e+10 | M27: Hopewell Valley Regional School District
A28: Beach Haven Borough | B28: 1503 | C28: Ocean | D28: 3143620523 | E28: 3691558778 | F28: 4064535847 | G28: 3633238383 | M28: Hunterdon Central Regional High School
A29: Beachwood Borough | B29: 1504 | C29: Ocean | D29: 1176326812 | E29: 1337524365 | F29: 1476397187 | G29: 1330082788 | M29: Kingsway Regional School District
A30: Bedminster Township | B30: 1801 | C30: Somerset | D30: 2619810530 | E30: 2677135694 | F30: 2733574308 | G30: 2676840177 | M30: Kittatinny Regional High School
A31: Belleville Township | B31: 0701 | C31: Essex | D31: 3767732740 | E31: 4193145253 | F31: 4763242036 | G31: 4241373343 | M31: Lakeland Regional High School
A32: Bellmawr Borough | B32: 0404 | C32: Camden | D32: 888341649 | E32: 1016548427 | F32: 1093710823 | G32: 999533633 | M32: Lenape Regional High School District
A33: Belmar Borough | B33: 1306 | C33: Monmouth | D33: 2360426956 | E33: 2593724280 | F33: 2920742698 | G33: 2624964645 | M33: Lenape Valley Regional High School
A34: Belvidere Town | B34: 2103 | C34: Warren | D34: 235502827 | E34: 232850755 | F34: 276130030 | G34: 248161204 | M34: Long Beach Island Consolidated School District
A35: Bergen County | B35: 0200 | C35: Bergen | D35: 209970578578 | E35: 226848381422 | F35: 244730595430 | G35: 2.271831851e+11 | M35: Lower Cape May Regional High School
A36: Bergenfield Borough | B36: 0203 | C36: Bergen | D36: 3777567913 | E36: 4090610419 | F36: 4644599932 | G36: 4170926088 | M36: Mainland Regional High School
A37: Berkeley Heights Township | B37: 2001 | C37: Union | D37: 3694801857 | E37: 3986580542 | F37: 4416365516 | G37: 4032582638 | M37: Manalapan-Englishtown Regional School District
A38: Berkeley Township | B38: 1505 | C38: Ocean | D38: 7578702079 | E38: 8530244253 | F38: 9321660273 | G38: 8476868868 | M38: Matawan-Aberdeen Regional School District
A39: Berlin Borough | B39: 0405 | C39: Camden | D39: 897129078 | E39: 994312789 | F39: 1106959840 | G39: 999467235.7 | M39: Monmouth Regional High School District
A40: Berlin Township | B40: 0406 | C40: Camden | D40: 787725316 | E40: 883385665 | F40: 999120762 | G40: 890077247.7 | M40: Montgomery Township School District
A41: Bernards Township | B41: 1802 | C41: Somerset | D41: 7719623229 | E41: 8106165936 | F41: 8987168496 | G41: 8270985887 | M41: Morris Hills Regional School District
A42: Bernardsville Borough | B42: 1803 | C42: Somerset | D42: 2373089707 | E42: 2492803825 | F42: 2673605337 | G42: 2513166290 | M42: Morris Regional School District
A43: Bethlehem Township | B43: 1002 | C43: Hunterdon | D43: 670818909 | E43: 734739111 | F43: 771491820 | G43: 725683280 | M43: New Hanover Consolidated School District
A44: Beverly City | B44: 0302 | C44: Burlington | D44: 148433721 | E44: 162041012 | F44: 191818704 | G44: 167431145.7 | M44: North Hunterdon Regional High School
A45: Blairstown Township | B45: 2104 | C45: Warren | D45: 857181243 | E45: 961040808 | F45: 1022147488 | G45: 946789846.3 | M45: North Warren Regional School District
A46: Bloomfield Township | B46: 0702 | C46: Essex | D46: 6171437304 | E46: 6871381125 | F46: 7676477513 | G46: 6906431981 | M46: Northern Burlington County Regional School District
A47: Bloomingdale Borough | B47: 1601 | C47: Passaic | D47: 1061427576 | E47: 1168897016 | F47: 1231240675 | G47: 1153855089 | M47: Northern Highlands Regional High School
A48: Bloomsbury Borough | B48: 1003 | C48: Hunterdon | D48: 110197152 | E48: 119859250 | F48: 134959218 | G48: 121671873.3 | M48: Northern Valley Regional High School
A49: Bogota Borough | B49: 0204 | C49: Bergen | D49: 1006723497 | E49: 1080136333 | F49: 1259146116 | G49: 1115335315 | M49: Ocean Township Consolidated School District
A50: Boonton Town | B50: 1401 | C50: Morris | D50: 1427416850 | E50: 1522262969 | F50: 1626029994 | G50: 1525236604 | M50: Pascack Valley Regional High School
A51: Boonton Township | B51: 1402 | C51: Morris | D51: 1045930997 | E51: 1084469393 | F51: 1123625515 | G51: 1084675302 | M51: Passaic County Manchester Regional High School
A52: Bordentown City | B52: 0303 | C52: Burlington | D52: 424447636 | E52: 476574659 | F52: 532796716 | G52: 477939670.3 | M52: Passaic Valley Regional High School
A53: Bordentown Township | B53: 0304 | C53: Burlington | D53: 1733071385 | E53: 2079807658 | F53: 2214803718 | G53: 2009227587 | M53: Penns Grove-Carneys Point Regional School District
A54: Bound Brook Borough | B54: 1804 | C54: Somerset | D54: 1063530794 | E54: 1168381736 | F54: 1275972393 | G54: 1169294974 | M54: Pinelands Regional School Distrct
A55: Bradley Beach Borough | B55: 1307 | C55: Monmouth | D55: 1902491377 | E55: 2119677824 | F55: 2330816023 | G55: 2117661741 | M55: Ramapo Indian Hills Regional High School
A56: Branchburg Township | B56: 1805 | C56: Somerset | D56: 4223944552 | E56: 4239021623 | F56: 4700796858 | G56: 4387921011 | M56: Rancocas Valley Regional High School
A57: Branchville Borough | B57: 1903 | C57: Sussex | D57: 142151764 | E57: 148681381 | F57: 156956197 | G57: 149263114 | M57: Red Bank Regional High School
A58: Brick Township | B58: 1506 | C58: Ocean | D58: 14412265880 | E58: 16132824304 | F58: 17870579588 | G58: 1.613855659e+10 | M58: River Dell Regional School District
A59: Bridgeton City | B59: 0601 | C59: Cumberland | D59: 605482544 | E59: 697739822 | F59: 767782186 | G59: 690334850.7 | M59: Rumson-Fair Haven Regional High School
A60: Bridgewater Township | B60: 1806 | C60: Somerset | D60: 11069312621 | E60: 11053771638 | F60: 12110063913 | G60: 1.141104939e+10 | M60: Sandyston-Walpack Consolidated School District
A61: Brielle Borough | B61: 1308 | C61: Monmouth | D61: 2130638124 | E61: 2295564906 | F61: 2490323456 | G61: 2305508829 | M61: Scotch Plains-Fanwood Regional School District
A62: Brigantine City | B62: 0103 | C62: Atlantic | D62: 4627787141 | E62: 5471013223 | F62: 6290058665 | G62: 5462953010 | M62: Shore Regional High School
A63: Brooklawn Borough | B63: 0407 | C63: Camden | D63: 151200779 | E63: 160453622 | F63: 185932264 | G63: 165862221.7 | M63: Somerset Hills Regional School District
A64: Buena Borough | B64: 0104 | C64: Atlantic | D64: 323368923 | E64: 338398603 | F64: 366000877 | G64: 342589467.7 | M64: South Hunterdon Regional School District
A65: Buena Vista Township | B65: 0105 | C65: Atlantic | D65: 687486042 | E65: 789443221 | F65: 893600730 | G65: 790176664.3 | M65: South Orange-Maplewood Consolidated School District
A66: Burlington City | B66: 0305 | C66: Burlington | D66: 758885355 | E66: 793930242 | F66: 900162584 | G66: 817659393.7 | M66: Southern Regional School District
A67: Burlington County | B67: 0300 | C67: Burlington | D67: 57127482908 | E67: 63683279578 | F67: 70348911191 | G67: =AVERAGE(D67:F67) -> 6.371989123e+10 | M67: Spotswood-Helmetta Consolidated School District
A68: Burlington Township | B68: 0306 | C68: Burlington | D68: 3128363852 | E68: 3489804622 | F68: 3698860649 | G68: 3439009708 | M68: Sterling High School
A69: Butler Borough | B69: 1403 | C69: Morris | D69: 1192740368 | E69: 1291226850 | F69: 1412028759 | G69: 1298665326 | M69: Sussex-Wantage Regional School Distrct
A70: Byram Township | B70: 1904 | C70: Sussex | D70: 1183622861 | E70: 1286876250 | F70: 1442348511 | G70: 1304282541 | M70: Swedesboro-Woolwich Consolidated School District
A71: Caldwell Borough | B71: 0703 | C71: Essex | D71: 1343058649 | E71: 1423615175 | F71: 1514927142 | G71: 1427200322 | M71: Tinton Falls School District
A72: Califon Borough | B72: 1004 | C72: Hunterdon | D72: 171387207 | E72: 180957862 | F72: 199646463 | G72: 183997177.3 | M72: Toms River Regional School District
A73: Camden City | B73: 0408 | C73: Camden | D73: 2052938017 | E73: 2259409836 | F73: 2597514395 | G73: 2303287416 | M73: Upper Freehold Regional School District
A74: Camden County | B74: 0400 | C74: Camden | D74: 47431609946 | E74: 53053211756 | F74: 58416778243 | G74: 5.296719998e+10 | M74: Wallkill Valley Regional High School
A75: Cape May City | B75: 0502 | C75: Cape May | D75: 4378643600 | E75: 4773553004 | F75: 5582839985 | G75: 4911678863 | M75: Warren Hills Regional School District
A76: Cape May County | B76: 0500 | C76: Cape May | D76: 76162736537 | E76: 86606142936 | F76: 96029950746 | G76: 8.626627674e+10 | M76: Watchung Hills Regional High School
A77: Cape May Point Borough | B77: 0503 | C77: Cape May | D77: 699587776 | E77: 789960849 | F77: 903464898 | G77: 797671174.3 | M77: West Essex Regional School District
A78: Carlstadt Borough | B78: 0205 | C78: Bergen | D78: 2813928643 | E78: 3275361005 | F78: 3425367067 | G78: 3171552238 | M78: West Morris Regional High School District
A79: Carneys Point Township | B79: 1713 | C79: Salem | D79: 780458534 | E79: 915131679 | F79: 976934855 | G79: 890841689.3 | M79: West Windsor-Plainsboro Regional School District
A80: Carteret Borough | B80: 1201 | C80: Middlesex | D80: 3547417272 | E80: 3795328475 | F80: 4409759591 | G80: 3917501779 | M80: Westwood Regional School District
A81: Cedar Grove Township | B81: 0704 | C81: Essex | D81: 2657620616 | E81: 2807894626 | F81: 3018736139 | G81: 2828083794 | M81: Woodstown-Pilesgrove Regional School District
A82: Chatham Borough | B82: 1404 | C82: Morris | D82: 2875548452 | E82: 3163864151 | F82: 3437204647 | G82: 3158872417
A83: Chatham Township | B83: 1405 | C83: Morris | D83: 4086904522 | E83: 4443871977 | F83: 4792635696 | G83: 4441137398
A84: Cherry Hill Township | B84: 0409 | C84: Camden | D84: 10624165627 | E84: 12398913655 | F84: 13351620736 | G84: 12124900006
A85: Chesilhurst Borough | B85: 0410 | C85: Camden | D85: 102275751 | E85: 111521158 | F85: 123622531 | G85: 112473146.7
A86: Chester Borough | B86: 1406 | C86: Morris | D86: 436300822 | E86: 468024010 | F86: 550234539 | G86: 484853123.7
A87: Chester Township | B87: 1407 | C87: Morris | D87: 2015694740 | E87: 2149044151 | F87: 2295589072 | G87: 2153442654
A88: Chesterfield Township | B88: 0307 | C88: Burlington | D88: 1004896673 | E88: 1110530771 | F88: 1242501976 | G88: 1119309807
A89: Cinnaminson Township | B89: 0308 | C89: Burlington | D89: 2270771213 | E89: 2451410291 | F89: 2806809471 | G89: 2509663658
A90: Clark Township | B90: 2002 | C90: Union | D90: 3351679345 | E90: 3613517045 | F90: 3902262009 | G90: 3622486133
A91: Clayton Borough | B91: 0801 | C91: Gloucester | D91: 621124408 | E91: 714788369 | F91: 794209275 | G91: 710040684
A92: Clementon Borough | B92: 0411 | C92: Camden | D92: 308976244 | E92: 339999643 | F92: 379722091 | G92: 342899326
A93: Cliffside Park Borough | B93: 0206 | C93: Bergen | D93: 3894436085 | E93: 4184585494 | F93: 4454710634 | G93: 4177910738
A94: Clifton City | B94: 1602 | C94: Passaic | D94: 12708234847 | E94: 13903318841 | F94: 14888942920 | G94: 1.383349887e+10
A95: Clinton Town | B95: 1005 | C95: Hunterdon | D95: 460622796 | E95: 486821483 | F95: 524955541 | G95: 490799940
A96: Clinton Township | B96: 1006 | C96: Hunterdon | D96: 2412609080 | E96: 2522802317 | F96: 2669497831 | G96: 2534969743
A97: Closter Borough | B97: 0207 | C97: Bergen | D97: 2578912797 | E97: 2889785706 | F97: 3103792686 | G97: 2857497063
A98: Collingswood Borough | B98: 0412 | C98: Camden | D98: 1376948030 | E98: 1506270157 | F98: 1693660277 | G98: 1525626155
A99: Colts Neck Township | B99: 1309 | C99: Monmouth | D99: 3538289485 | E99: 3861160004 | F99: 4183856336 | G99: 3861101942
A100: Commercial Township | B100: 0602 | C100: Cumberland | D100: 279337832 | E100: 292945969 | F100: 343901889 | G100: 305395230
A101: Corbin City | B101: 0106 | C101: Atlantic | D101: 61468788 | E101: 76293205 | F101: 84721192 | G101: 74161061.67
A102: Cranbury Township | B102: 1202 | C102: Middlesex | D102: 2143541042 | E102: 2361768135 | F102: 2480055472 | G102: 2328454883
A103: Cranford Township | B103: 2003 | C103: Union | D103: 5176117447 | E103: 5338289348 | F103: 5796867147 | G103: 5437091314
A104: Cresskill Borough | B104: 0208 | C104: Bergen | D104: 2698366212 | E104: 3085229805 | F104: 3392125714 | G104: 3058573910
A105: Cumberland County | B105: 0600 | C105: Cumberland | D105: 10468902929 | E105: 11375390254 | F105: 12455766844 | G105: 1.143335334e+10
A106: Deal Borough | B106: 1310 | C106: Monmouth | D106: 3856077700 | E106: 4425971258 | F106: 5270210985 | G106: 4517419981
A107: Deerfield Township | B107: 0603 | C107: Cumberland | D107: 239496648 | E107: 268784679 | F107: 293915062 | G107: 267398796.3
A108: Delanco Township | B108: 0309 | C108: Burlington | D108: 526998353 | E108: 612147602 | F108: 692733529 | G108: 610626494.7
A109: Delaware Township | B109: 1007 | C109: Hunterdon | D109: 1027924713 | E109: 1091507234 | F109: 1202897387 | G109: 1107443111
A110: Delran Township | B110: 0310 | C110: Burlington | D110: 1952619216 | E110: 2140620361 | F110: 2404415684 | G110: 2165885087
A111: Demarest Borough | B111: 0209 | C111: Bergen | D111: 1764073944 | E111: 1991512536 | F111: 2159431748 | G111: 1971672743
A112: Dennis Township | B112: 0504 | C112: Cape May | D112: 1144679944 | E112: 1194542557 | F112: 1394241931 | G112: 1244488144
A113: Denville Township | B113: 1408 | C113: Morris | D113: 3753403293 | E113: 4176428147 | F113: 4436329291 | G113: 4122053577
A114: Deptford Township | B114: 0802 | C114: Gloucester | D114: 3480005483 | E114: 3839093607 | F114: 4161033016 | G114: 3826710702
A115: Dover Town | B115: 1409 | C115: Morris | D115: 1655879588 | E115: 1773345469 | F115: 1903239948 | G115: 1777488335
A116: Downe Township | B116: 0604 | C116: Cumberland | D116: 153253163 | E116: 175269641 | F116: 187878098 | G116: 172133634
A117: Dumont Borough | B117: 0210 | C117: Bergen | D117: 2562851234 | E117: 2699257789 | F117: 3009698560 | G117: 2757269194
A118: Dunellen Borough | B118: 1203 | C118: Middlesex | D118: 847014639 | E118: 898876382 | F118: 1009337352 | G118: 918409457.7
A119: Eagleswood Township | B119: 1508 | C119: Ocean | D119: 288418682 | E119: 313762636 | F119: 354250258 | G119: 318810525.3
A120: East Amwell Township | B120: 1008 | C120: Hunterdon | D120: 857823319 | E120: 929273842 | F120: 989926561 | G120: 925674574
A121: East Brunswick Township | B121: 1204 | C121: Middlesex | D121: 8625315659 | E121: 9423430713 | F121: 10228404408 | G121: 9425716927
A122: East Greenwich Township | B122: 0803 | C122: Gloucester | D122: 1545546296 | E122: 1701321710 | F122: 1900721084 | G122: 1715863030
A123: East Hanover Township | B123: 1410 | C123: Morris | D123: 3518596714 | E123: 3928770212 | F123: 4260656537 | G123: 3902674488
A124: East Newark Borough | B124: 0902 | C124: Hudson | D124: 247552218 | E124: 269681642 | F124: 294081922 | G124: 270438594
A125: East Orange City | B125: 0705 | C125: Essex | D125: 4988695994 | E125: 5569702547 | F125: 5516844950 | G125: 5358414497
A126: East Rutherford Borough | B126: 0212 | C126: Bergen | D126: 2614492164 | E126: 2919057917 | F126: 3012307051 | G126: 2848619044
A127: East Windsor Township | B127: 1101 | C127: Mercer | D127: 3571086108 | E127: 4136956012 | F127: 4435112691 | G127: 4047718270
A128: Eastampton Township | B128: 0311 | C128: Burlington | D128: 656491383 | E128: 753327822 | F128: 934675805 | G128: 781498336.7
A129: Eatontown Borough | B129: 1311 | C129: Monmouth | D129: 3301396672 | E129: 3470507206 | F129: 3286285020 | G129: 3352729633
A130: Edgewater Borough | B130: 0213 | C130: Bergen | D130: 4029455922 | E130: 4526305849 | F130: 4753649917 | G130: 4436470563
A131: Edgewater Park Township | B131: 0312 | C131: Burlington | D131: 712203548 | E131: 863425598 | F131: 960738364 | G131: =AVERAGE(D131:F131) -> 845455836.7
A132: Edison Township | B132: 1205 | C132: Middlesex | D132: 19261135029 | E132: 20214871436 | F132: 21121959282 | G132: 2.019932192e+10
A133: Egg Harbor City | B133: 0107 | C133: Atlantic | D133: 254884561 | E133: 312127975 | F133: 360987357 | G133: 309333297.7
A134: Egg Harbor Township | B134: 0108 | C134: Atlantic | D134: 5081708795 | E134: 5752822407 | F134: 6189084492 | G134: 5674538565
A135: Elizabeth City | B135: 2004 | C135: Union | D135: 12157693108 | E135: 13381468661 | F135: 15027347740 | G135: 1.352216984e+10
A136: Elk Township | B136: 0804 | C136: Gloucester | D136: 474382607 | E136: 539086768 | F136: 606674727 | G136: 540048034
A137: Elmer Borough | B137: 1702 | C137: Salem | D137: 122526743 | E137: 135096460 | F137: 143104905 | G137: 133576036
A138: Elmwood Park Borough | B138: 0211 | C138: Bergen | D138: 2683573512 | E138: 2845270836 | F138: 3231520728 | G138: 2920121692
A139: Elsinboro Township | B139: 1703 | C139: Salem | D139: 113749458 | E139: 129550006 | F139: 141733570 | G139: 128344344.7
A140: Emerson Borough | B140: 0214 | C140: Bergen | D140: 1512844503 | E140: 1612848348 | F140: 1717422876 | G140: 1614371909
A141: Englewood City | B141: 0215 | C141: Bergen | D141: 5930371563 | E141: 6347412816 | F141: 6718299189 | G141: 6332027856
A142: Englewood Cliffs Borough | B142: 0216 | C142: Bergen | D142: 3895115495 | E142: 3990262873 | F142: 4136659844 | G142: 4007346071
A143: Englishtown Borough | B143: 1312 | C143: Monmouth | D143: 317035903 | E143: 349323685 | F143: 393889211 | G143: 353416266.3
A144: Essex County | B144: 0700 | C144: Essex | D144: 106390647088 | E144: 123386100965 | F144: 137206848844 | G144: 1.223278656e+11
A145: Essex Fells Borough | B145: 0706 | C145: Essex | D145: 814155909 | E145: 806530708 | F145: 928995098 | G145: 849893905
A146: Estell Manor City | B146: 0109 | C146: Atlantic | D146: 202680573 | E146: 226780903 | F146: 246056925 | G146: 225172800.3
A147: Evesham Township | B147: 0313 | C147: Burlington | D147: 6487111047 | E147: 7113434233 | F147: 7990382787 | G147: 7196976022
A148: Ewing Township | B148: 1102 | C148: Mercer | D148: 3814358847 | E148: 4663047544 | F148: 4979701568 | G148: 4485702653
A149: Fair Haven Borough | B149: 1313 | C149: Monmouth | D149: 2382405571 | E149: 2530009229 | F149: 2753215206 | G149: 2555210002
A150: Fair Lawn Borough | B150: 0217 | C150: Bergen | D150: 6173269385 | E150: 6785784240 | F150: 7251802052 | G150: 6736951892
A151: Fairfield Township (Cumberland) | B151: 0605 | C151: Cumberland | D151: 319115935 | E151: 339377288 | F151: 362677659 | G151: 340390294
A152: Fairfield Township (Essex) | B152: 0707 | C152: Essex | D152: 3791394080 | E152: 4073199516 | F152: 4041014316 | G152: 3968535971
A153: Fairview Borough | B153: 0218 | C153: Bergen | D153: 1729461478 | E153: 2005716536 | F153: 2082642192 | G153: 1939273402
A154: Fanwood Borough | B154: 2005 | C154: Union | D154: 1455076896 | E154: 1558034877 | F154: 1765601025 | G154: 1592904266
A155: Far Hills Borough | B155: 1807 | C155: Somerset | D155: 436111448 | E155: 430974809 | F155: 468853872 | G155: 445313376.3
A156: Farmingdale Borough | B156: 1314 | C156: Monmouth | D156: 205477655 | E156: 239025721 | F156: 275584505 | G156: 240029293.7
A157: Fieldsboro Borough | B157: 0314 | C157: Burlington | D157: 61086057 | E157: 71603647 | F157: 71342709 | G157: 68010804.33
A158: Flemington Borough | B158: 1009 | C158: Hunterdon | D158: 495928762 | E158: 531454564 | F158: 564823260 | G158: 530735528.7
A159: Florence Township | B159: 0315 | C159: Burlington | D159: 1398712681 | E159: 1541480120 | F159: 1548771666 | G159: 1496321489
A160: Florham Park Borough | B160: 1411 | C160: Morris | D160: 3851290705 | E160: 4518849829 | F160: 5127585383 | G160: 4499241972
A161: Folsom Borough | B161: 0110 | C161: Atlantic | D161: 200804528 | E161: 223381576 | F161: 252013137 | G161: 225399747
A162: Fort Lee Borough | B162: 0219 | C162: Bergen | D162: 7230135145 | E162: 9135096063 | F162: 9936766355 | G162: 8767332521
A163: Frankford Township | B163: 1905 | C163: Sussex | D163: 915135857 | E163: 1007380475 | F163: 1057691185 | G163: 993402505.7
A164: Franklin Borough | B164: 1906 | C164: Sussex | D164: 539168794 | E164: 566942654 | F164: 663564470 | G164: 589891972.7
A165: Franklin Lakes Borough | B165: 0220 | C165: Bergen | D165: 4857264574 | E165: 5512561920 | F165: 6174942566 | G165: 5514923020
A166: Franklin Township (Gloucester) | B166: 0805 | C166: Gloucester | D166: 1645017544 | E166: 1852696189 | F166: 2012378430 | G166: 1836697388
A167: Franklin Township (Hunterdon) | B167: 1010 | C167: Hunterdon | D167: 573010081 | E167: 603970195 | F167: 617699944 | G167: 598226740
A168: Franklin Township (Somerset) | B168: 1808 | C168: Somerset | D168: 13418238386 | E168: 14340058308 | F168: 15191389763 | G168: 1.431656215e+10
A169: Franklin Township (Warren) | B169: 2105 | C169: Warren | D169: 492234006 | E169: 526525203 | F169: 552550273 | G169: 523769827.3
A170: Fredon Township | B170: 1907 | C170: Sussex | D170: 491630018 | E170: 552959344 | F170: 596796129 | G170: 547128497
A171: Freehold Borough | B171: 1315 | C171: Monmouth | D171: 1389546789 | E171: 1450135512 | F171: 1572760716 | G171: 1470814339
A172: Freehold Township | B172: 1316 | C172: Monmouth | D172: 8361314337 | E172: 9489611917 | F172: 9685268921 | G172: 9178731725
A173: Frelinghuysen Township | B173: 2106 | C173: Warren | D173: 331783941 | E173: 361086072 | F173: 373769171 | G173: 355546394.7
A174: Frenchtown Borough | B174: 1011 | C174: Hunterdon | D174: 199642878 | E174: 220283498 | F174: 250443931 | G174: 223456769
A175: Galloway Township | B175: 0111 | C175: Atlantic | D175: 3597061147 | E175: 4048520318 | F175: 4537166018 | G175: 4060915828
A176: Garfield City | B176: 0221 | C176: Bergen | D176: 3274976501 | E176: 3540981030 | F176: 3824931898 | G176: 3546963143
A177: Garwood Borough | B177: 2006 | C177: Union | D177: 857015268 | E177: 915512592 | F177: 1033506667 | G177: 935344842.3
A178: Gibbsboro Borough | B178: 0413 | C178: Camden | D178: 273305827 | E178: 287713981 | F178: 303523384 | G178: 288181064
A179: Glassboro Borough | B179: 0806 | C179: Gloucester | D179: 1580321467 | E179: 1799968519 | F179: 2085543150 | G179: 1821944379
A180: Glen Gardner Borough | B180: 1012 | C180: Hunterdon | D180: 193970925 | E180: 208533278 | F180: 235993212 | G180: 212832471.7
A181: Glen Ridge Borough | B181: 0708 | C181: Essex | D181: 2263259850 | E181: 2454486652 | F181: 2677425509 | G181: 2465057337
A182: Glen Rock Borough | B182: 0222 | C182: Bergen | D182: 2909801829 | E182: 3155657099 | F182: 3435721151 | G182: 3167060026
A183: Gloucester City | B183: 0414 | C183: Camden | D183: 652705893 | E183: 724169949 | F183: 844685340 | G183: 740520394
A184: Gloucester County | B184: 0800 | C184: Gloucester | D184: 33944924694 | E184: 38066589418 | F184: 42255109559 | G184: 38088874557
A185: Gloucester Township | B185: 0415 | C185: Camden | D185: 5641114325 | E185: 6482939895 | F185: 7062943710 | G185: 6395665977
A186: Green Brook Township | B186: 1809 | C186: Somerset | D186: 1681019259 | E186: 1794752284 | F186: 1908132482 | G186: 1794634675
A187: Green Township | B187: 1908 | C187: Sussex | D187: 570685161 | E187: 618050314 | F187: 690878986 | G187: 626538153.7
A188: Greenwich Township (Cumberland) | B188: 0606 | C188: Cumberland | D188: 82359471 | E188: 91351701 | F188: 96807499 | G188: 90172890.33
A189: Greenwich Township (Gloucester) | B189: 0807 | C189: Gloucester | D189: 795892149 | E189: 923351547 | F189: 1044780288 | G189: 921341328
A190: Greenwich Township (Warren) | B190: 2107 | C190: Warren | D190: 836209827 | E190: 911698568 | F190: 936292004 | G190: 894733466.3
A191: Guttenberg Town | B191: 0903 | C191: Hudson | D191: 1217693978 | E191: 1343018654 | F191: 1338780817 | G191: 1299831150
A192: Hackensack City | B192: 0223 | C192: Bergen | D192: 7120307060 | E192: 7568298135 | F192: 8239423844 | G192: 7642676346
A193: Hackettstown Town | B193: 2108 | C193: Warren | D193: 1144747290 | E193: 1211468145 | F193: 1332433557 | G193: 1229549664
A194: Haddon Heights Borough | B194: 0418 | C194: Camden | D194: 910106399 | E194: 958490377 | F194: 994479208 | G194: 954358661.3
A195: Haddon Township | B195: 0416 | C195: Camden | D195: 1715110655 | E195: 1880026434 | F195: 2106314868 | G195: =AVERAGE(D195:F195) -> 1900483986
A196: Haddonfield Borough | B196: 0417 | C196: Camden | D196: 2725318967 | E196: 2905040264 | F196: 3103340093 | G196: 2911233108
A197: Hainesport Township | B197: 0316 | C197: Burlington | D197: 967999379 | E197: 1109082196 | F197: 1211689239 | G197: 1096256938
A198: Haledon Borough | B198: 1603 | C198: Passaic | D198: 845135279 | E198: 914863801 | F198: 984933190 | G198: 914977423.3
A199: Hamburg Borough | B199: 1909 | C199: Sussex | D199: 332920058 | E199: 370948815 | F199: 445803102 | G199: 383223991.7
A200: Hamilton Township (Atlantic) | B200: 0112 | C200: Atlantic | D200: 2682437039 | E200: 2967046714 | F200: 3297613039 | G200: 2982365597
... 386 more rows

Sheet Summary
I1: State of New Jersey
A2: =MID(CELL("filename",A2),FIND("]",CELL("filename",A2))+1,256) -> Summary | B2: =ROW() -> 2 | C2: =+J4 -> Local Unit: | D2: =R7 -> 0 | E2: sds | H2: =T4 -> COUNTY | I2: Department of Community Affairs
A3: Summary | B3: =ROW() -> 3 | C3: =+J4 -> Local Unit: | D3: =R7 -> 0 | E3: sds | H3: =T4 -> COUNTY | I3: Supplemental Debt Statement
A4: Summary | B4: =ROW() -> 4 | C4: =+J4 -> Local Unit: | D4: =R7 -> 0 | E4: sds | F4: muni | G4: code | H4: =T4 -> COUNTY | J4: Local Unit: | L4: ENTITY NAME | P4: =VLOOKUP(L4,Muni!A1:C586,2,FALSE) -> CODE | R4: County: | T4: =VLOOKUP(L4,Muni!A1:C586,3,FALSE) -> COUNTY
R5: Prepared as of:
A6: Summary | B6: =ROW() -> 6 | C6: =+J4 -> Local Unit: | D6: =R7 -> 0 | E6: sds
A7: Summary | B7: =ROW() -> 7 | C7: =+J4 -> Local Unit: | D7: =R7 -> 0 | E7: sds | F7: bond | G7: ord | H7: =T4 -> COUNTY | M7: Budget Year Ending: | N7: December 31 | P7: 2025
A8: Summary | B8: =ROW() -> 8 | C8: =+J4 -> Local Unit: | D8: =R7 -> 0 | E8: sds | F8: cfo | G8: name | H8: =T4 -> COUNTY | K8: Name: | P8: Phone: | AC8: June 30
A9: Summary | B9: =ROW() -> 9 | C9: =+J4 -> Local Unit: | D9: =R7 -> 0 | E9: sds | F9: cfo | G9: title | H9: =T4 -> COUNTY | K9: Title: | P9: Email: | AC9: December 31
A10: =MID(CELL("filename",A10),FIND("]",CELL("filename",A10))+1,256) -> Summary | B10: =ROW() -> 10 | C10: =+J4 -> Local Unit: | D10: =R7 -> 0 | E10: sds | F10: cfo | G10: add1 | H10: =T4 -> COUNTY | K10: CFO Cert. # | P10: Address:
A11: =MID(CELL("filename",A11),FIND("]",CELL("filename",A11))+1,256) -> Summary | B11: =ROW() -> 11 | C11: =+J4 -> Local Unit: | D11: =R7 -> 0 | E11: sds | F11: cfo | G11: add2 | H11: =T4 -> COUNTY
A12: =MID(CELL("filename",A12),FIND("]",CELL("filename",A12))+1,256) -> Summary | B12: =ROW() -> 12 | C12: =+J4 -> Local Unit: | D12: =R7 -> 0 | E12: sds | F12: cfo | G12: add3 | H12: =T4 -> COUNTY
A13: =MID(CELL("filename",A13),FIND("]",CELL("filename",A13))+1,256) -> Summary | B13: =ROW() -> 13 | C13: =+J4 -> Local Unit: | D13: =R7 -> 0 | E13: sds | H13: =T4 -> COUNTY | J13: =""&L8&", Being duly sworn, deposes and says:" -> , Being duly sworn, deposes and says:
J14: ="Deponent is the Chief Officer of "&L4&" here and in the statement hereinafter mentioned called the local unit." -> Deponent is the Chief Officer of ENTITY NAME here and in the statement hereinafter mentioned called the local unit.
J15: The Supplemental Debt Statement annexed hereto and hereby made a part hereof is a true statement of the debt condition of the local unit as of the date therein and is computed as provided by the Local Bond Law of New Jersey.
A16: Summary | B16: =ROW() -> 16 | C16: =+J4 -> Local Unit: | D16: =R7 -> 0 | E16: sds | H16: =T4 -> COUNTY | J16: FALSE
A17: Summary | B17: =ROW() -> 17 | C17: =+J4 -> Local Unit: | D17: =R7 -> 0 | E17: sds | H17: =T4 -> COUNTY | N17: Net Debt as per | P17: Decrease | R17: Increase
A18: Summary | B18: =ROW() -> 18 | C18: =+J4 -> Local Unit: | D18: =R7 -> 0 | E18: sds | H18: =T4 -> COUNTY | N18: Annual Debt Statement | P18: (Since December 31, last past) | T18: Net Debt
A19: Summary | B19: =ROW() -> 19 | C19: =+J4 -> Local Unit: | D19: =R7 -> 0 | E19: sds | F19: bond | G19: sp | H19: =T4 -> COUNTY | J19: Bonds and Notes for School Purposes (Local and Regional) | N19: 0 | P19: 0 | R19: 0 | T19: =+N19-P19+R19 -> 0
A20: Summary | B20: =ROW() -> 20 | C20: =+J4 -> Local Unit: | D20: =R7 -> 0 | E20: sds | F20: bond | G20: slp | H20: =T4 -> COUNTY | J20: Bonds and Notes for Self Liquidating Purposes | N20: 0 | P20: 0 | R20: 0 | T20: =+N20-P20+R20 -> 0
A21: Summary | B21: =ROW() -> 21 | C21: =+J4 -> Local Unit: | D21: =R7 -> 0 | E21: sds | F21: bond | G21: ban | H21: =T4 -> COUNTY | J21: Other Bonds and Notes | T21: =+N21-P21+R21 -> 0
A22: Summary | B22: =ROW() -> 22 | C22: =+J4 -> Local Unit: | D22: =R7 -> 0 | E22: sds | F22: bond | G22: tot | H22: =T4 -> COUNTY | J22: Net Debt at the time of this statement is…………………………………………………………. | T22: =SUM(T19:T21) -> 0
A23: Summary | B23: =ROW() -> 23 | C23: =+J4 -> Local Unit: | D23: =R7 -> 0 | E23: sds | H23: =T4 -> COUNTY
A24: Summary | B24: =ROW() -> 24 | C24: =+J4 -> Local Unit: | D24: =R7 -> 0 | E24: sds | H24: =T4 -> COUNTY | J24: The amounts and purposes separately itemized of the obligations about to be authorized, and any deductions which may be made on account of each such item are: (see Note "C" below)
A25: Summary | B25: =ROW() -> 25 | C25: =+J4 -> Local Unit: | D25: =R7 -> 0 | E25: sds | H25: =T4 -> COUNTY
A26: Summary | B26: =ROW() -> 26 | C26: =+J4 -> Local Unit: | D26: =R7 -> 0 | E26: sds | H26: =T4 -> COUNTY | J26: Bond Ordinance | L26: Purpose(s) | P26: Amount | R26: Deduction | T26: Net
A27: Summary | B27: =ROW() -> 27 | C27: =+J4 -> Local Unit: | D27: =R7 -> 0 | E27: sds | F27: ibond | G27: i1 | H27: =T4 -> COUNTY | P27: 0 | R27: 0 | T27: =+P27-R27 -> 0
A28: Summary | B28: =ROW() -> 28 | C28: =+J4 -> Local Unit: | D28: =R7 -> 0 | E28: sds | F28: ibond | G28: i2 | H28: =T4 -> COUNTY | P28: 0 | R28: 0 | T28: 0
A29: Summary | B29: =ROW() -> 29 | C29: =+J4 -> Local Unit: | D29: =R7 -> 0 | E29: sds | F29: ibond | G29: i3 | H29: =T4 -> COUNTY | P29: 0 | R29: 0 | T29: 0
A30: Summary | B30: =ROW() -> 30 | C30: =+J4 -> Local Unit: | D30: =R7 -> 0 | E30: sds | F30: ibond | G30: i4 | H30: =T4 -> COUNTY | P30: 0 | R30: 0 | T30: 0
A31: Summary | B31: =ROW() -> 31 | C31: =+J4 -> Local Unit: | D31: =R7 -> 0 | E31: sds | F31: ibond | G31: i5 | H31: =T4 -> COUNTY | P31: 0 | R31: 0 | T31: 0
A32: Summary | B32: =ROW() -> 32 | C32: =+J4 -> Local Unit: | D32: =R7 -> 0 | E32: sds | F32: ibond | G32: i6 | H32: =T4 -> COUNTY | P32: 0 | R32: 0 | T32: 0
A33: Summary | B33: =ROW() -> 33 | C33: =+J3 -> 0 | D33: =T6 -> 0 | E33: sds | F33: ibond | H33: =T4 -> COUNTY | P33: =SUM(P27:P32) -> 0 | R33: =SUM(R27:R32) -> 0 | T33: =SUM(T27:T32) -> 0
A34: Summary | B34: =ROW() -> 34 | C34: =+J4 -> Local Unit: | D34: =R7 -> 0 | E34: sds | F34: ibond | H34: =T4 -> COUNTY
A35: Summary | B35: =ROW() -> 35 | C35: =+J4 -> Local Unit: | D35: =R7 -> 0 | E35: sds | F35: ibond | G35: itot | H35: =T4 -> COUNTY | I35: 4 | J35: The net debt of the local unit determined by the addition of the net debt amounts stated in items 2 and 3 above is: | T35: =+T22+T33 -> 0
A36: Summary | B36: =ROW() -> 36 | C36: =+J4 -> Local Unit: | D36: =R7 -> 0 | E36: sds | H36: =T4 -> COUNTY | I36: 5 | J36: Equalized valuation basis (the average of the equalized valuations of real estate, including improvements and the assessed valuation of class II railroad property of the local unit for the last 3 preceding years) as stated in the Annual Debt Statement or the revision therof last filed.
A37: Summary | B37: =ROW() -> 37 | C37: =+J4 -> Local Unit: | D37: =R7 -> 0 | E37: sds | H37: =T4 -> COUNTY | K37: Year
A38: Summary | B38: =ROW() -> 38 | C38: =+J4 -> Local Unit: | D38: =R7 -> 0 | E38: sds | F38: Eqval | G38: 1 | H38: =T4 -> COUNTY | J38: (1) | K38: =TEXT(N7-1096, "yyyy") -> 2022 | L38: Equalized Valuation Real Property with Improvements plus assessed valuation of Class II RR Property | T38: =IF(L4="ENTITY NAME","",VLOOKUP(L4,Muni!A1:F586,4,FALSE)) -> 
A39: Summary | B39: =ROW() -> 39 | C39: =+J4 -> Local Unit: | D39: =R7 -> 0 | E39: sds | F39: Eqval | G39: 2 | H39: =T4 -> COUNTY | J39: (2) | K39: =TEXT(N7-731, "yyyy") -> 2023 | L39: Equalized Valuation Real Property with Improvements plus assessed valuation of Class II RR Property | T39: =IF(L4="ENTITY NAME","",VLOOKUP(L4,Muni!A1:F586,5,FALSE)) -> 
A40: Summary | B40: =ROW() -> 40 | C40: =+J4 -> Local Unit: | D40: =R7 -> 0 | E40: sds | F40: Eqval | G40: 3 | H40: =T4 -> COUNTY | J40: (3) | K40: =TEXT(N7-366, "yyyy") -> 2024 | L40: Equalized Valuation Real Property with Improvements plus assessed valuation of Class II RR Property | T40: =IF(L4="ENTITY NAME","",VLOOKUP(L4,Muni!A1:F586,6,FALSE)) -> 
A41: Summary | B41: =ROW() -> 41 | C41: =+J4 -> Local Unit: | D41: =R7 -> 0 | E41: sds | F41: Eqval | G41: avg | H41: =T4 -> COUNTY | I41: 6 | J41: Equalized Valuation Basis - Average of (1), (2) and (3)…………………………………………………………………….. | T41: =AVERAGE(T38,T39,T40) -> 
A42: Summary | B42: =ROW() -> 42 | C42: =+J4 -> Local Unit: | D42: =R7 -> 0 | E42: sds | H42: =T4 -> COUNTY
A43: Summary | B43: =ROW() -> 43 | C43: =+J4 -> Local Unit: | D43: =R7 -> 0 | E43: sds | F43: Eqval | G43: perc | H43: =T4 -> COUNTY | I43: 7 | J43: Net Debt (Line 4 above) expressed as a percentage of such equalized valuation basis (Line 6 above) is: | T43: =+T35/T41 -> 
A44: Summary | B44: =ROW() -> 44 | C44: =+J4 -> Local Unit: | D44: =R7 -> 0 | E44: sds | H44: =T4 -> COUNTY
A45: =MID(CELL("filename",A45),FIND("]",CELL("filename",A45))+1,256) -> Summary | B45: =ROW() -> 45 | C45: =+J4 -> Local Unit: | D45: =R7 -> 0 | E45: sds | H45: =T4 -> COUNTY | I45: NOTES
A46: =MID(CELL("filename",A46),FIND("]",CELL("filename",A46))+1,256) -> Summary | B46: =ROW() -> 46 | C46: =+J4 -> Local Unit: | D46: =R7 -> 0 | E46: sds | H46: =T4 -> COUNTY | J46: A | K46: If authorization of bonds or notes is permitted by an exception to the debt limit, specify the particular paragraph of NJSA 40A:2-7 or other section of law providing such exception.
A47: =MID(CELL("filename",A47),FIND("]",CELL("filename",A47))+1,256) -> Summary | B47: =ROW() -> 47 | C47: =+J4 -> Local Unit: | D47: =R7 -> 0 | E47: sds | H47: =T4 -> COUNTY | J47: B | K47: This form is also to be used in the bonding of separate (not Type I) school districts as required by NJSA 18A:24-16, and filed before the school district election. In such case pages 4, 5 and 6 should be completed to set forth the computation supporting any deduction in line 3 above.
A48: =MID(CELL("filename",A48),FIND("]",CELL("filename",A48))+1,256) -> Summary | B48: =ROW() -> 48 | C48: =+J4 -> Local Unit: | D48: =R7 -> 0 | E48: sds | H48: =T4 -> COUNTY | J48: C | K48: Only the account of bonds or notes about to be authorized should be entered. The amount of the "down payment" provided in the bond ordinance should not be included nor shown as a deduction.

Sheet Self Liquidating
A1: =MID(CELL("filename",A1),FIND("]",CELL("filename",A1))+1,256) -> Self Liquidating | B1: =ROW() -> 1 | C1: =Summary!J4 -> Local Unit: | D1: =Summary!R7 -> 0 | E1: sds | H1: =Summary!T4 -> COUNTY | I1: COMPUTATION AS TO INDEBTEDNESS FOR IMPROVEMENT OR EXTENSION OF AN
A2: =MID(CELL("filename",A2),FIND("]",CELL("filename",A2))+1,256) -> Self Liquidating | B2: =ROW() -> 2 | C2: =Summary!J4 -> Local Unit: | D2: =Summary!R7 -> 0 | E2: sds | H2: =Summary!T4 -> COUNTY | I2: EXISTING MUNICIPAL PUBLIC UTILITY, NJSA 40A:2-7(h); NJSA 40A:2-47(a)
A4: =MID(CELL("filename",A4),FIND("]",CELL("filename",A4))+1,256) -> Self Liquidating | B4: =ROW() -> 4 | C4: =Summary!J4 -> Local Unit: | D4: =Summary!R7 -> 0 | E4: sds | F4: mpu | G4: util | H4: =Summary!T4 -> COUNTY | K4: Municipal Public Utility:
A6: =MID(CELL("filename",A6),FIND("]",CELL("filename",A6))+1,256) -> Self Liquidating | B6: =ROW() -> 6 | C6: =Summary!J4 -> Local Unit: | D6: =Summary!R7 -> 0 | E6: sds | F6: mpu | G6: xru | H6: =Summary!T4 -> COUNTY | I6: 1 | J6: Annual Debt Statement, excess in revenues of utility | M6: 0 | N6: 0 | O6: 0 | P6: 0
A7: Self Liquidating | B7: =ROW() -> 7 | C7: =Summary!J4 -> Local Unit: | D7: =Summary!R7 -> 0 | E7: sds | F7: mpu | G7: lidr | H7: =Summary!T4 -> COUNTY | I7: 2 | J7: Less Interest and principal computed as provided in NJSA 40A:2-47(a) for all obligations authorized but not issued to the extent not already charged to income in the annual debt statement. | M7: 0 | N7: 0 | O7: 0 | P7: 0
A8: Self Liquidating | B8: =ROW() -> 8 | C8: =Summary!J4 -> Local Unit: | D8: =Summary!R7 -> 0 | E8: sds | F8: mpu | G8: xrrp | H8: =Summary!T4 -> COUNTY | I8: 3 | J8: Excess revenue prior to authorizing proposed obligations = (line 1 minus line 2) | L8: =+L6-L7 -> 0 | M8: =+M6-M7 -> 0 | N8: =+N6-N7 -> 0 | O8: =+O6-O7 -> 0 | P8: =+P6-P7 -> 0
A9: Self Liquidating | B9: =ROW() -> 9 | C9: =Summary!J4 -> Local Unit: | D9: =Summary!R7 -> 0 | E9: sds | F9: mpu | G9: idrc | H9: =Summary!T4 -> COUNTY | I9: 4 | J9: Interest and principal calculated for proposed obligations NJSA 40A:2-47(a)
A10: Self Liquidating | B10: =ROW() -> 10 | C10: =Summary!J4 -> Local Unit: | D10: =Summary!R7 -> 0 | E10: sds | F10: mpu | G10: i1y | H10: =Summary!T4 -> COUNTY | J10: (a) Interest for one year at 4 1/2% | M10: 0 | N10: 0 | O10: 0 | P10: 0
A11: Self Liquidating | B11: =ROW() -> 11 | C11: =Summary!J4 -> Local Unit: | D11: =Summary!R7 -> 0 | E11: sds | F11: mpu | G11: fisb | H11: =Summary!T4 -> COUNTY | J11: (b) First installment of serial bonds legally issuable | M11: 0 | N11: 0 | O11: 0 | P11: 0
A12: Self Liquidating | B12: =ROW() -> 12 | C12: =Summary!J4 -> Local Unit: | D12: =Summary!R7 -> 0 | E12: sds | F12: mpu | G12: tcab | H12: =Summary!T4 -> COUNTY | J12: (c) Total charges (Items (a) and (b)) | L12: =L10+L11 -> 0 | M12: =M10+M11 -> 0 | N12: =N10+N11 -> 0 | O12: =O10+O11 -> 0 | P12: =P10+P11 -> 0
A14: Self Liquidating | B14: =ROW() -> 14 | C14: =Summary!J4 -> Local Unit: | D14: =Summary!R7 -> 0 | E14: sds | H14: =Summary!T4 -> COUNTY | J14: Note: If line 3 equals or exceeds line 4, obligations may be authorized under the provisions of NJSA 40A:2-7(h) as limited by NJSA 40A:2-47(a).
A15: =MID(CELL("filename",A15),FIND("]",CELL("filename",A15))+1,256) -> Self Liquidating | B15: =ROW() -> 15 | C15: =+Summary!J4 -> Local Unit: | D15: =Summary!R7 -> 0 | E15: sds | H15: =Summary!T4 -> COUNTY

Sheet Local School
A1: =MID(CELL("filename",A1),FIND("]",CELL("filename",A1))+1,256) -> Local School | B1: =ROW() -> 1 | C1: =Summary!J4 -> Local Unit: | D1: =Summary!R7 -> 0 | E1: sds | H1: =Summary!T4 -> COUNTY | I1: COMPUTATION OF SCHOOL INDEBTEDNESS AND DEDUCTIONS UNDER PROVISIONS OF NJSA 18A: 24-17
A2: Local School | B2: =ROW() -> 2 | C2: 0103 | D2: =Summary!R7 -> 0 | E2: sds | H2: =Summary!T4 -> COUNTY | K2: Check if municipality or county has no local school district.
A3: Local School | B3: =ROW() -> 3 | C3: 0103 | D3: =Summary!R7 -> 0 | E3: sds | H3: =Summary!T4 -> COUNTY | J3: NJSA 18A:24-19 (Lines 1 to 7)
A4: Local School | B4: =ROW() -> 4 | C4: 0103 | D4: =Summary!R7 -> 0 | E4: sds | F4: sid | H4: =Summary!T4 -> COUNTY | I4: 1 | J4: Average of equalized valuations (page 1, line 3) | O4: =Summary!T41 -> 
A5: Local School | B5: =ROW() -> 5 | C5: 0103 | D5: =Summary!R7 -> 0 | E5: sds | F5: sid | H5: =Summary!T4 -> COUNTY | I5: 2 | J5: Gross School District Debt outstanding and authorized but not issued (not including proposed issue) | O5: 0
A6: Local School | B6: =ROW() -> 6 | C6: 0103 | D6: =Summary!R7 -> 0 | E6: sds | F6: sid | H6: =Summary!T4 -> COUNTY | I6: 3 | J6: Less: Sinking funds held for payment of School Debt, by Sinking Fund Commission | O6: 0
A7: Local School | B7: =ROW() -> 7 | C7: 0103 | D7: =Summary!R7 -> 0 | E7: sds | F7: sid | H7: =Summary!T4 -> COUNTY | I7: 4 | J7: Net debt for school purposes (line 2, minus line 3) | O7: =+O5-O6 -> 0
A8: Local School | B8: =ROW() -> 8 | C8: 0103 | D8: =Summary!R7 -> 0 | E8: sds | F8: sid | H8: =Summary!T4 -> COUNTY | I8: 5 | J8: Debt deduction for school purposes’ % (as per line_below) | N8: 0 | O8: =+N8*O4 -> 
A9: Local School | B9: =ROW() -> 9 | C9: 0103 | D9: =Summary!R7 -> 0 | E9: sds | F9: sid | H9: =Summary!T4 -> COUNTY | K9: (a) 2½% Kindergarten or Grade 1 through Grade 6
A10: Local School | B10: =ROW() -> 10 | C10: 0103 | D10: =Summary!R7 -> 0 | E10: sds | F10: sid | H10: =Summary!T4 -> COUNTY | K10: (b) 3 % Kindergarten or Grade 1 through Grade 8
A11: Local School | B11: =ROW() -> 11 | C11: 0103 | D11: =Summary!R7 -> 0 | E11: sds | F11: sid | H11: =Summary!T4 -> COUNTY | K11: (c) 3½% Kindergarten or Grade 1 through Grade 9
A12: Local School | B12: =ROW() -> 12 | C12: 0103 | D12: =Summary!R7 -> 0 | E12: sds | F12: sid | H12: =Summary!T4 -> COUNTY | K12: (d) 4 % Kindergarten or Grade 1 through Grade 12
A13: Local School | B13: =ROW() -> 13 | C13: 0103 | D13: =Summary!R7 -> 0 | E13: sds | F13: sid | H13: =Summary!T4 -> COUNTY | I13: 6 | J13: Available debt deduction (excess, if any, of line 5 over line 4) | O13: =+O8-O7 -> 
A14: Local School | B14: =ROW() -> 14 | C14: 0103 | D14: =Summary!R7 -> 0 | E14: sds | F14: sid | H14: =Summary!T4 -> COUNTY | I14: 7 | J14: School Bonds about to be authorized | O14: 0
A15: Local School | B15: =ROW() -> 15 | C15: 0103 | D15: =Summary!R7 -> 0 | E15: sds | F15: sid | H15: =Summary!T4 -> COUNTY | J15: Note: Omit lines 8 to 13, if line 6 equals or exceeds line 7. or if shown on line 17
A16: Local School | B16: =ROW() -> 16 | C16: 0103 | D16: =Summary!R7 -> 0 | E16: sds | F16: sid | H16: =Summary!T4 -> COUNTY | J16: NJSA 18A:24-22 (Lines 8 to 13)
A17: Local School | B17: =ROW() -> 17 | C17: 0103 | D17: =Summary!R7 -> 0 | E17: sds | F17: sid | H17: =Summary!T4 -> COUNTY | I17: 8 | J17: Excess of line 7 over line 6 | O17: =+O14-O13 -> 
A18: Local School | B18: =ROW() -> 18 | C18: 0103 | D18: =Summary!R7 -> 0 | E18: sds | F18: sid | H18: =Summary!T4 -> COUNTY | I18: 9 | J18: Municipal Debt Limit (3½% of line 1 above) | O18: =0.035*O4 -> 
A19: Local School | B19: =ROW() -> 19 | C19: 0103 | D19: =Summary!R7 -> 0 | E19: sds | F19: sid | H19: =Summary!T4 -> COUNTY | I19: 10 | J19: Net Debt | O19: =+Summary!T22 -> 0
A20: Local School | B20: =ROW() -> 20 | C20: 0103 | D20: =Summary!R7 -> 0 | E20: sds | F20: sid | H20: =Summary!T4 -> COUNTY | I20: 11 | J20: Available Municipal Borrowing Margin (excess, if any, of line 9 over line 10) | O20: =+O18-O19 -> 
A21: Local School | B21: =ROW() -> 21 | C21: 0103 | D21: =Summary!R7 -> 0 | E21: sds | F21: sid | H21: =Summary!T4 -> COUNTY | I21: 12 | J21: Use of Municipal Borrowing Margin (line 8 not exceeding line 11) | O21: =+O17 -> 
A22: Local School | B22: =ROW() -> 22 | C22: 0103 | D22: =Summary!R7 -> 0 | E22: sds | F22: sid | H22: =Summary!T4 -> COUNTY | I22: 13 | J22: Remaining Municipal Borrowing Margin after authorization of proposed School Bonds (line 11 minus line 12) | O22: =+O20-O21 -> 
A23: Local School | B23: =ROW() -> 23 | C23: 0103 | D23: =Summary!R7 -> 0 | E23: sds | F23: sid | H23: =Summary!T4 -> COUNTY | J23: Note: Omit lines 14 to 16, if line 11 equals or exceeds line 8, or if shown on line 17
A24: Local School | B24: =ROW() -> 24 | C24: 0103 | D24: =Summary!R7 -> 0 | E24: sds | F24: sid | H24: =Summary!T4 -> COUNTY | J24: NJSA 18A:24-24 (lines 14 to 16)
A25: Local School | B25: =ROW() -> 25 | C25: 0103 | D25: =Summary!R7 -> 0 | E25: sds | F25: sid | H25: =Summary!T4 -> COUNTY | I25: 14 | J25: Amount of line 7 | O25: =+O14 -> 0
A26: Local School | B26: =ROW() -> 26 | C26: 0103 | D26: =Summary!R7 -> 0 | E26: sds | F26: sid | H26: =Summary!T4 -> COUNTY | I26: 15 | J26: Amount of Deduction: | L26: (a) Amount of line 6 | N26: =+O13 -> 
A27: Local School | B27: =ROW() -> 27 | C27: 0103 | D27: =Summary!R7 -> 0 | E27: sds | F27: sid | H27: =Summary!T4 -> COUNTY | L27: (b) Amount of line 11 | N27: =+O20 -> 
A28: Local School | B28: =ROW() -> 28 | C28: 0103 | D28: =Summary!R7 -> 0 | E28: sds | F28: sid | H28: =Summary!T4 -> COUNTY | L28: Total | O28: =+N27+N26 -> 
A29: Local School | B29: =ROW() -> 29 | C29: 0103 | D29: =Summary!R7 -> 0 | E29: sds | F29: sid | H29: =Summary!T4 -> COUNTY | I29: 16 | J29: Excess of line 14 over line 15 | O29: =IF((+O25-O28)<1,0,(+O25-O28)) -> 

Sheet Regional School
A1: =MID(CELL("filename",A1),FIND("]",CELL("filename",A1))+1,256) -> Regional School | B1: =ROW() -> 1 | C1: =Summary!J4 -> Local Unit: | D1: =Summary!R7 -> 0 | E1: sds | H1: =Summary!T4 -> COUNTY | I1: Computation of Regional School Indebtedness
J2: Check if municipality of county has no regional school district.
A3: Regional School | B3: =ROW() -> 3 | C3: =Summary!J4 -> Local Unit: | D3: =Summary!R7 -> 0 | E3: sds | H3: =Summary!T4 -> COUNTY | J3: 1 | K3: 2 | L3: 3 | M3: 4 | N3: 5
A4: Regional School | B4: =ROW() -> 4 | C4: =Summary!J4 -> Local Unit: | D4: =Summary!R7 -> 0 | E4: sds | H4: =Summary!T4 -> COUNTY | I4: Municipality | J4: Average Equalized Valuations (N.J.S.A. 40A:2-43) | L4: Apportionment of Previous Bonds Issued or Authorized | M4: Amount Apportionment of Proposed Bond Issue | N4: Total apportionment of previous bonds issued or authorized plus apportionment of proposed bond issue Column 3 plus 4
A5: Regional School | B5: =ROW() -> 5 | C5: =Summary!J4 -> Local Unit: | D5: =Summary!R7 -> 0 | E5: sds | H5: =Summary!T4 -> COUNTY | J5: Amount | K5: Percentage
A6: Regional School | B6: =ROW() -> 6 | C6: =Summary!J4 -> Local Unit: | D6: =Summary!R7 -> 0 | E6: sds | F6: regs | G6: debt | H6: =Summary!T4 -> COUNTY | J6: =IF(I6="","",VLOOKUP(I6,Muni!A1:G587,7,FALSE)) ->  | K6: =IF(J6="","",J6/J$22) ->  | L6: =IF(K6="","",$L$22*K6) ->  | M6: =IF(K6="","",$M$22*K6) ->  | N6: =SUM(L6:M6) -> 0
A7: Regional School | B7: =ROW() -> 7 | C7: =Summary!J4 -> Local Unit: | D7: =Summary!R7 -> 0 | E7: sds | F7: regs | G7: debt | H7: =Summary!T4 -> COUNTY | J7: =IF(I7="","",VLOOKUP(I7,Muni!A2:G588,7,FALSE)) ->  | K7: =IF(J7="","",J7/J$22) ->  | L7: =IF(K7="","",$L$22*K7) ->  | M7: =IF(K7="","",$M$22*K7) ->  | N7: =SUM(L7:M7) -> 0
A8: Regional School | B8: =ROW() -> 8 | C8: =Summary!J4 -> Local Unit: | D8: =Summary!R7 -> 0 | E8: sds | F8: regs | G8: debt | H8: =Summary!T4 -> COUNTY | J8: =IF(I8="","",VLOOKUP(I8,Muni!A3:G589,7,FALSE)) ->  | L8: =IF(K8="","",$L$22*K8) ->  | N8: 0
A9: Regional School | B9: =ROW() -> 9 | C9: =Summary!J4 -> Local Unit: | D9: =Summary!R7 -> 0 | E9: sds | F9: regs | G9: debt | H9: =Summary!T4 -> COUNTY | J9: =IF(I9="","",VLOOKUP(I9,Muni!A4:G590,7,FALSE)) ->  | N9: 0
A10: Regional School | B10: =ROW() -> 10 | C10: =Summary!J4 -> Local Unit: | D10: =Summary!R7 -> 0 | E10: sds | F10: regs | G10: debt | H10: =Summary!T4 -> COUNTY | J10: =IF(I10="","",VLOOKUP(I10,Muni!A5:G591,7,FALSE)) ->  | N10: 0
A11: Regional School | B11: =ROW() -> 11 | C11: =Summary!J4 -> Local Unit: | D11: =Summary!R7 -> 0 | E11: sds | F11: regs | G11: debt | H11: =Summary!T4 -> COUNTY | J11: =IF(I11="","",VLOOKUP(I11,Muni!A6:G592,7,FALSE)) ->  | N11: 0
A12: Regional School | B12: =ROW() -> 12 | C12: =Summary!J4 -> Local Unit: | D12: =Summary!R7 -> 0 | E12: sds | F12: regs | G12: debt | H12: =Summary!T4 -> COUNTY | J12: =IF(I12="","",VLOOKUP(I12,Muni!A7:G593,7,FALSE)) ->  | N12: 0
A13: Regional School | B13: =ROW() -> 13 | C13: =Summary!J4 -> Local Unit: | D13: =Summary!R7 -> 0 | E13: sds | F13: regs | G13: debt | H13: =Summary!T4 -> COUNTY | J13: =IF(I13="","",VLOOKUP(I13,Muni!A8:G594,7,FALSE)) ->  | N13: 0
A14: Regional School | B14: =ROW() -> 14 | C14: =Summary!J4 -> Local Unit: | D14: =Summary!R7 -> 0 | E14: sds | F14: regs | G14: debt | H14: =Summary!T4 -> COUNTY | J14: =IF(I14="","",VLOOKUP(I14,Muni!A9:G595,7,FALSE)) ->  | N14: 0
A15: Regional School | B15: =ROW() -> 15 | C15: =Summary!J4 -> Local Unit: | D15: =Summary!R7 -> 0 | E15: sds | F15: regs | G15: debt | H15: =Summary!T4 -> COUNTY | J15: =IF(I15="","",VLOOKUP(I15,Muni!A10:G596,7,FALSE)) ->  | L15: =IF(K15="","",$L$22*K15) ->  | N15: 0
A16: Regional School | B16: =ROW() -> 16 | C16: =Summary!J4 -> Local Unit: | D16: =Summary!R7 -> 0 | E16: sds | F16: regs | G16: debt | H16: =Summary!T4 -> COUNTY | J16: =IF(I16="","",VLOOKUP(I16,Muni!A11:G597,7,FALSE)) ->  | N16: 0
A17: Regional School | B17: =ROW() -> 17 | C17: =Summary!J4 -> Local Unit: | D17: =Summary!R7 -> 0 | E17: sds | F17: regs | G17: debt | H17: =Summary!T4 -> COUNTY | J17: =IF(I17="","",VLOOKUP(I17,Muni!A12:G598,7,FALSE)) ->  | N17: 0
A18: Regional School | B18: =ROW() -> 18 | C18: =Summary!J4 -> Local Unit: | D18: =Summary!R7 -> 0 | E18: sds | F18: regs | G18: debt | H18: =Summary!T4 -> COUNTY | J18: =IF(I18="","",VLOOKUP(I18,Muni!A13:G599,7,FALSE)) ->  | N18: 0
A19: Regional School | B19: =ROW() -> 19 | C19: =Summary!J4 -> Local Unit: | D19: =Summary!R7 -> 0 | E19: sds | F19: regs | G19: debt | H19: =Summary!T4 -> COUNTY | J19: =IF(I19="","",VLOOKUP(I19,Muni!A14:G600,7,FALSE)) ->  | N19: 0
A20: Regional School | B20: =ROW() -> 20 | C20: =Summary!J4 -> Local Unit: | D20: =Summary!R7 -> 0 | E20: sds | F20: regs | G20: debt | H20: =Summary!T4 -> COUNTY | J20: =IF(I20="","",VLOOKUP(I20,Muni!A15:G601,7,FALSE)) ->  | N20: 0
A21: Regional School | B21: =ROW() -> 21 | C21: =Summary!J4 -> Local Unit: | D21: =Summary!R7 -> 0 | E21: sds | F21: regs | G21: debt | H21: =Summary!T4 -> COUNTY | J21: =IF(I21="","",VLOOKUP(I21,Muni!A16:G602,7,FALSE)) ->  | N21: 0
A22: Regional School | B22: =ROW() -> 22 | C22: =Summary!J4 -> Local Unit: | D22: =Summary!R7 -> 0 | E22: sds | F22: cspd | G22: tot | H22: =Summary!T4 -> COUNTY | I22: Totals | J22: =SUM(J6:J21) -> 0 | K22: =SUM(K6:K21) -> 0 | M22: 0 | N22: =SUM(N6:N21) -> 0

Sheet Spec Borrowing Power
A1: =MID(CELL("filename",#REF!),FIND("]",CELL("filename",#REF!))+1,256) ->  | B1: =ROW() -> 1 | C1: =+Summary!J4 -> Local Unit: | D1: =Summary!R7 -> 0 | E1: sds | H1: =Summary!T4 -> COUNTY | J1: SPECIAL DEBT STATEMENT
A2: =MID(CELL("filename",#REF!),FIND("]",CELL("filename",#REF!))+1,256) ->  | B2: =ROW() -> 2 | C2: =+Summary!J4 -> Local Unit: | D2: =Summary!R7 -> 0 | E2: sds | H2: =Summary!T4 -> COUNTY | J2: BORROWING POWER AVAILABLE UNDER N.J.S.A. 40A:2-7(f)
A3: =MID(CELL("filename",#REF!),FIND("]",CELL("filename",#REF!))+1,256) ->  | B3: =ROW() -> 3 | C3: =+Summary!J4 -> Local Unit: | D3: =Summary!R7 -> 0 | E3: sds | H3: =Summary!T4 -> COUNTY
A4: =MID(CELL("filename",#REF!),FIND("]",CELL("filename",#REF!))+1,256) ->  | B4: =ROW() -> 4 | C4: =+Summary!J4 -> Local Unit: | D4: =Summary!R7 -> 0 | E4: sds | F4: bpa | G4: acdc | H4: =Summary!T4 -> COUNTY | I4: 1 | J4: Amount of accumulated debt incurring capacity under RS 40:1-16(d) as shown on the latest Annual Debt Statement. | L4: 0
A5: =MID(CELL("filename",#REF!),FIND("]",CELL("filename",#REF!))+1,256) ->  | B5: =ROW() -> 5 | C5: =+Summary!J4 -> Local Unit: | D5: =Summary!R7 -> 0 | E5: sds | F5: bpa | H5: =Summary!T4 -> COUNTY | I5: 2 | J5: Obligations heretofore authorized in excess of debt limitation and pursuant to:
A6: =MID(CELL("filename",#REF!),FIND("]",CELL("filename",#REF!))+1,256) ->  | B6: =ROW() -> 6 | C6: =+Summary!J4 -> Local Unit: | D6: =Summary!R7 -> 0 | E6: sds | F6: bpa | G6: 27d | H6: =Summary!T4 -> COUNTY | J6: (a) NJSA 40A:2-7(d) | K6: 0
A7: =MID(CELL("filename",#REF!),FIND("]",CELL("filename",#REF!))+1,256) ->  | B7: =ROW() -> 7 | C7: =+Summary!J4 -> Local Unit: | D7: =Summary!R7 -> 0 | E7: sds | F7: bpa | G7: 27f | H7: =Summary!T4 -> COUNTY | J7: (b) NJSA 40A:2-7(f) | K7: 0
A8: =MID(CELL("filename",#REF!),FIND("]",CELL("filename",#REF!))+1,256) ->  | B8: =ROW() -> 8 | C8: =+Summary!J4 -> Local Unit: | D8: =Summary!R7 -> 0 | E8: sds | F8: bpa | G8: 27g | H8: =Summary!T4 -> COUNTY | J8: (c) NJSA 40A:2-7(g) | K8: 0
A9: =MID(CELL("filename",#REF!),FIND("]",CELL("filename",#REF!))+1,256) ->  | B9: =ROW() -> 9 | C9: =+Summary!J4 -> Local Unit: | D9: =Summary!R7 -> 0 | E9: sds | F9: bpa | G9: 27t | H9: =Summary!T4 -> COUNTY | J9: Total | L9: =SUM(K6:K8) -> 0
A10: =MID(CELL("filename",#REF!),FIND("]",CELL("filename",#REF!))+1,256) ->  | B10: =ROW() -> 10 | C10: =+Summary!J4 -> Local Unit: | D10: =Summary!R7 -> 0 | E10: sds | F10: bpa | G10: adic | H10: =Summary!T4 -> COUNTY | I10: 3 | J10: Available debt incurring capacity (N.J.S.A. 40A:2-7(f)) | L10: 0
A11: =MID(CELL("filename",#REF!),FIND("]",CELL("filename",#REF!))+1,256) ->  | B11: =ROW() -> 11 | C11: =+Summary!J4 -> Local Unit: | D11: =Summary!R7 -> 0 | E11: sds | F11: bpa | H11: =Summary!T4 -> COUNTY | I11: 4 | J11: Obligations about to be authorized pursuant toNJSA 40A :2-7(f) (If item 3 equals or exceeds item 4, obligations may be authorized) | L11: 0
A12: =MID(CELL("filename",A12),FIND("]",CELL("filename",A12))+1,256) -> Spec Borrowing Power | B12: =ROW() -> 12 | C12: =+Summary!J4 -> Local Unit: | D12: =Summary!R7 -> 0 | E12: sds | H12: =Summary!T4 -> COUNTY | J12: BORROWING POWER AVAILABLE UNDER NJSA 40A:2-7(g)
A13: Spec Borrowing Power | B13: =ROW() -> 13 | C13: =+Summary!J4 -> Local Unit: | D13: =Summary!R7 -> 0 | E13: sds | H13: =Summary!T4 -> COUNTY
A14: Spec Borrowing Power | B14: =ROW() -> 14 | C14: =+Summary!J4 -> Local Unit: | D14: =Summary!R7 -> 0 | E14: sds | F14: bs | G14: tapo | H14: =Summary!T4 -> COUNTY | I14: 1 | J14: Total appropriations made in local unit budget for current fiscal year for payment of obligations of local unit included in Annual Debt Statement or revision thereof last filed as of the end of the preceding fiscal year. | L14: 0
A15: Spec Borrowing Power | B15: =ROW() -> 15 | C15: =+Summary!J4 -> Local Unit: | D15: =Summary!R7 -> 0 | E15: sds | F15: bs | G15: locu | H15: =Summary!T4 -> COUNTY | I15: 2 | J15: Less the amount of such obligations which constitute utility and assessment obligations: | L15: 0
A16: Spec Borrowing Power | B16: =ROW() -> 16 | C16: =+Summary!J4 -> Local Unit: | D16: =Summary!R7 -> 0 | E16: sds | F16: bs | G16: xtapo | H16: =Summary!T4 -> COUNTY | I16: 3 | J16: Excess of item 1 over item 2: | L16: =L14-L15 -> 0
A17: Spec Borrowing Power | B17: =ROW() -> 17 | C17: =+Summary!J4 -> Local Unit: | D17: =Summary!R7 -> 0 | E17: sds | F17: bs | G17: tlps | H17: =Summary!T4 -> COUNTY | I17: 4 | J17: Amount raised in the tax levy of the current fiscal year by the local unit for the payment of bonds or notes of any school district | L17: 0
A18: Spec Borrowing Power | B18: =ROW() -> 18 | C18: =+Summary!J4 -> Local Unit: | D18: =Summary!R7 -> 0 | E18: sds | F18: bs | G18: tot66 | H18: =Summary!T4 -> COUNTY | I18: 5 | J18: Amount equal to 2/3 of the sum of item 3 and item 4 | L18: =L16+L17*0.66667 -> 0
A19: Spec Borrowing Power | B19: =ROW() -> 19 | C19: =+Summary!J4 -> Local Unit: | D19: =Summary!R7 -> 0 | E19: sds | F19: bs | G19: aoau | H19: =Summary!T4 -> COUNTY | I19: 6 | J19: (a) Amount of obligations heretofore authorized under NJSA 40A:2-7(g) in current fiscal year | K19: 0
A20: Spec Borrowing Power | B20: =ROW() -> 20 | C20: =+Summary!J4 -> Local Unit: | D20: =Summary!R7 -> 0 | E20: sds | F20: bs | G20: aarep | H20: =Summary!T4 -> COUNTY | J20: (b) Amount of authorizations included in 6(a) which were heretofore repealed | K20: 0
A21: Spec Borrowing Power | B21: =ROW() -> 21 | C21: =+Summary!J4 -> Local Unit: | D21: =Summary!R7 -> 0 | E21: sds | F21: bs | H21: =Summary!T4 -> COUNTY | J21: (c) Excess of item 6(a) over item 6(b) | L21: =K19-K20 -> 0
A22: Spec Borrowing Power | B22: =ROW() -> 22 | C22: =+Summary!J4 -> Local Unit: | D22: =Summary!R7 -> 0 | E22: sds | F22: bs | G22: xor | H22: =Summary!T4 -> COUNTY | I22: 7 | J22: Excess of item 5 over item 6(c) | L22: =L18-L21 -> 0
A23: Spec Borrowing Power | B23: =ROW() -> 23 | C23: =+Summary!J4 -> Local Unit: | D23: =Summary!R7 -> 0 | E23: sds | F23: bs | G23: otba | H23: =Summary!T4 -> COUNTY | I23: 8 | J23: Obligations about to be authorized | L23: 0
A24: Spec Borrowing Power | B24: =ROW() -> 24 | C24: =+Summary!J4 -> Local Unit: | D24: =Summary!R7 -> 0 | E24: sds | F24: bs | G24: bcr | H24: =Summary!T4 -> COUNTY | I24: 9 | J24: Borrowing capacity still remaining after proposed authorization | L24: =L22-L23 -> 0
A25: Spec Borrowing Power | B25: =ROW() -> 25 | C25: =+Summary!J4 -> Local Unit: | D25: =Summary!R7 -> 0 | E25: sds | H25: =Summary!T4 -> COUNTY | J25: (item 7 less item 8) (If item 7 equals or exceeds item 8, obligations may be authorized)
